bitfinex/quotes_ETHUSD_20220202
["timestamp","ask_amount","ask_price","bid_price","bid_amount"]
[1643789704400,1.53449918,2757.9,2757.5,10.81294]
[1643789704601,1.53449918,2757.8,2757.5,10.81294]
[1643789704800,1.53449918,2757.7,2757.6,0.3]
[1643789705000,1.53449918,2758.0,2757.6,0.3]
[1643789705302,2.85134744,2758.0,2757.6,1.20644]
[1643789705501,1.53449918,2757.9,2757.6,1.20644]
[1643789705701,2.53449918,2757.9,2757.6,1.20644]
[1643789705902,1.53449918,2757.8,2757.6,1.20644]
[1643789706504,1.53449918,2757.7,2757.6,1.20644]
[1643789706707,1.53449918,2757.9,2757.6,0.3]
[1643789706907,1.53449918,2757.9,2757.6,1.20646]
[1643789707106,2.53449918,2757.9,2757.6,1.20646]
[1643789707306,1.53449918,2757.8,2757.6,1.20646]
[1643789707507,1.53449918,2757.9,2757.6,1.20646]
[1643789708329,1.53449918,2757.8,2757.6,1.20646]
[1643789708527,1.53449918,2757.7,2757.6,1.20646]
[1643789709127,1.53449918,2758.0,2757.6,1.20646]
[1643789709626,1.53449918,2758.0,2757.8,1.93414236]
[1643789710627,1.36256,2758.2,2757.8,3.14048236]
[1643789710628,1.53449918,2757.9,2757.8,3.14048236]
[1643789710930,1.53449918,2757.9,2757.8,5.05445486]
[1643789711128,0.1812,2758.2,2757.8,5.96075486]
[1643789711129,1.53449918,2758.1,2757.8,5.96075486]
[1643789711531,0.68524396,2758.7,2757.9,0.1812]
[1643789711532,1.53449918,2758.0,2757.9,0.1812]
[1643789711789,0.1812,2758.7,2757.9,2.74660238]
[1643789712091,0.1812,2758.7,2758.1,0.9062]
[1643789712092,1.5342156,2758.6,2758.1,0.9062]
[1643789712287,1.5342156,2758.6,2758.2,0.3]
[1643789712887,1.5342156,2758.6,2758.1,2.32411067]
[1643789713087,1.5342156,2758.6,2758.2,0.75325801]
[1643789713287,1.5342156,2758.6,2758.3,1.94603773]
[1643789713691,1.5342156,2758.5,2758.3,2.24603773]
[1643789713892,0.68524396,2758.8,2758.4,0.1812]
[1643789714287,0.68524396,2758.8,2758.3,0.4812]
[1643789714690,0.68524396,2758.8,2758.6,0.96707118]
[1643789714889,0.68524396,2758.8,2758.6,1.93414236]
[1643789715089,0.68524396,2758.8,2758.7,0.90605]
[1643789715290,2.2194067,2758.9,2758.7,0.3]
[1643789715535,1.09496601,2759.1,2758.7,2.25608628]
[1643789715536,1.53416274,2758.8,2758.7,2.25608628]
[1643789715839,1.53416274,2758.8,2758.6,1.5037626]
[1643789716035,1.53416274,2758.7,2758.6,1.5037626]
[1643789716236,0.68524396,2759.2,2758.6,1.5037626]
[1643789716237,2.2194067,2759.2,2758.6,2.4098026]
[1643789716441,1.53416274,2759.1,2758.6,3.3158526]
[1643789716635,1.53416274,2759.0,2758.6,3.3158526]
[1643789716837,1.53416274,2758.9,2758.6,3.3158526]
[1643789717037,1.53416274,2758.8,2758.6,3.3158526]
[1643789717238,1.53416274,2758.7,2758.6,3.6158526]
[1643789717437,2.2194067,2759.1,2758.6,3.6158526]
[1643789718638,0.68524396,2759.1,2758.6,3.6158526]
[1643789719880,0.68524396,2759.1,2758.6,2.11209]
[1643789720082,0.68524396,2759.1,2758.8,1.5037626]
[1643789720284,0.68524396,2759.1,2758.9,1.20608]
[1643789722584,2.2194067,2759.2,2758.9,1.20608]
[1643789724240,1.53416274,2759.2,2758.9,1.20608]
[1643789725436,1.53416274,2759.2,2759.0,1.5037626]
[1643789728283,1.53416274,2759.1,2759.0,2.4097826]
[1643789728685,0.68524396,2759.4,2759.1,0.3]
[1643789729286,2.21920258,2759.4,2759.1,0.3]
[1643789729885,3.21920258,2759.4,2759.0,2.4097826]
[1643789730085,3.21920258,2759.4,2759.0,1.5037626]
[1643789730086,2.21920258,2759.3,2759.0,1.5037626]
[1643789730287,3.21920258,2759.3,2759.0,1.8037626]
[1643789730530,3.21920258,2759.3,2759.1,0.90609]
[1643789730531,1.53395862,2759.2,2759.1,0.90609]
[1643789730931,2.21920258,2759.3,2759.1,0.90609]
[1643789732336,2.21920258,2759.3,2758.9,0.444998]
[1643789733037,2.21920258,2759.3,2759.0,0.90612]
[1643789735290,2.21920258,2759.3,2758.7,1.38197237]
[1643789735689,2.21920258,2759.3,2759.1,0.53669142]
[1643789735892,2.21920258,2759.3,2759.1,1.5037626]
[1643789737300,2.21920258,2759.3,2759.1,1.8037626]
[1643789738642,1.53395862,2759.2,2759.1,1.8037626]
[1643789738838,1.53395862,2759.2,2759.1,2.7097526]
[1643789739042,2.02872161,2759.9,2759.3,6.82631654]
[1643789739043,0.68543796,2759.9,2759.3,6.82631654]
[1643789739256,0.14192357,2760.1,2759.8,0.94420344]
[1643789739451,1.92734289,2761.5,2760.3,0.02874274]
[1643789739452,1.82818376,2761.2,2760.3,0.02874274]
[1643789739655,1.82818376,2761.2,2760.6,0.01287649]
[1643789739845,1.37154095,2761.8,2761.1,0.01264345]
[1643789739846,0.9143853,2761.6,2761.1,0.01264345]
[1643789740039,0.1809,2761.5,2761.1,0.80779363]
[1643789740242,1.37154095,2761.9,2761.1,0.80779363]
[1643789740243,0.04490545,2761.2,2761.1,1.3714]
[1643789740440,0.9143853,2761.9,2761.2,0.69554935]
[1643789740647,5.35479089,2763.0,2761.3,2.523]
[1643789740648,0.04774757,2761.7,2761.3,2.523]
[1643789740847,0.04774757,2761.7,2761.5,0.01248092]
[1643789741041,0.9143853,2763.0,2761.6,1.70386452]
[1643789741247,0.9143853,2763.0,2761.9,0.25]
[1643789741443,0.9143853,2763.0,2762.0,0.01581051]
[1643789741682,1.321624,2763.1,2762.4,0.00933518]
[1643789741890,0.4072387,2763.1,2762.6,0.00872505]
[1643789742089,0.3572387,2763.1,2762.5,0.29898156]
[1643789742493,0.3572387,2763.1,2762.5,0.29035806]
[1643789742690,1.271624,2763.1,2762.5,0.29035806]
[1643789742888,0.3572387,2763.1,2762.5,0.29035806]
[1643789743287,0.3572387,2763.1,2762.5,1.17132511]
[1643789744088,0.6572387,2763.1,2762.5,0.29035806]
[1643789745109,0.6572387,2763.1,2761.9,1.99095]
[1643789745110,0.0693895,2762.4,2761.9,1.09679142]
[1643789745295,0.523,2762.8,2761.9,0.91589142]
[1643789745544,0.181,2762.7,2761.9,0.91589142]
[1643789746246,0.44970121,2762.3,2761.9,0.91589142]
[1643789746442,0.1809,2762.5,2761.9,0.91589142]
[1643789746644,0.7039,2762.8,2761.9,0.91589142]
[1643789746846,0.7039,2762.8,2761.9,1.21589142]
[1643789747447,0.32871909,2762.4,2761.9,1.21589142]
[1643789747847,0.62871909,2762.4,2761.9,0.91589142]
[1643789748448,0.3,2762.4,2761.9,0.91589142]
[1643789748748,1.0039,2762.8,2761.9,0.91589142]
[1643789748950,1.0039,2762.8,2761.9,1.21589142]
[1643789749189,1.0039,2762.8,2761.9,0.91589142]
[1643789749592,0.3172203,2762.4,2761.9,0.91589142]
[1643789749790,0.3172203,2762.4,2761.7,0.74582855]
[1643789749791,0.3,2762.4,2761.7,0.74582855]
[1643789749994,0.7039,2762.8,2761.7,0.74582855]
[1643789750201,0.7039,2762.8,2761.7,1.04582855]
[1643789750392,1.0039,2762.8,2761.7,1.04582855]
[1643789750595,1.0039,2762.8,2761.7,0.74582855]
[1643789750596,0.7039,2762.8,2761.7,0.74582855]
[1643789750795,1.0039,2762.8,2761.7,0.74582855]
[1643789750992,0.39824431,2762.4,2761.7,0.74582855]
[1643789751194,0.39824431,2762.4,2761.7,1.75990572]
[1643789751393,1.0039,2762.8,2762.0,1.5037626]
[1643789752598,0.32937778,2762.4,2762.0,1.5037626]
[1643789753244,1.0039,2762.8,2762.0,1.8037626]
[1643789753445,0.7039,2762.8,2762.0,1.8037626]
[1643789754045,0.7039,2762.8,2762.0,1.5037626]
[1643789754244,0.42830621,2762.5,2762.0,1.5037626]
[1643789755351,0.42830621,2762.5,2761.9,0.61302811]
[1643789756247,0.7039,2762.8,2761.9,0.61302811]
[1643789756446,1.0039,2762.8,2761.9,0.61302811]
[1643789756717,0.823,2762.8,2762.0,0.1809]
[1643789756907,1.0039,2762.8,2762.0,0.1809]
[1643789757915,1.0039,2762.8,2762.3,0.32584794]
[1643789758109,1.0039,2762.8,2762.0,0.1809]
[1643789759212,1.0039,2762.8,2762.2,0.32625366]
[1643789759413,1.0039,2762.8,2762.0,0.1809]
[1643789760019,0.01202068,2762.2,2761.4,0.1809]
[1643789760219,0.523,2762.1,2761.3,0.1809]
[1643789760449,0.523,2762.1,2761.8,0.34557473]
[1643789760839,0.823,2762.1,2761.8,0.25]
[1643789761039,0.523,2762.1,2761.8,0.25]
[1643789761242,0.823,2762.1,2761.8,0.25]
[1643789763248,0.40913987,2762.0,2761.8,0.25]
[1643789763446,0.93213987,2762.0,2761.8,0.25]
[1643789763648,1.23213987,2762.0,2761.8,0.25]
[1643789764685,1.53213987,2762.0,2761.8,0.25]
[1643789765788,1.23213987,2762.0,2761.8,0.25]
[1643789768139,1.17736722,2762.0,2761.8,0.25]
[1643789775314,1.17736722,2762.0,2761.3,0.06516127]
[1643789775539,1.17736722,2762.0,2761.3,0.181]
[1643789775837,1.17736722,2762.0,2761.2,0.1809]
[1643789776337,1.17736722,2762.0,2761.1,0.1809]
[1643789777240,1.17736722,2762.0,2761.1,0.61438695]
[1643789777740,0.93213987,2762.0,2761.1,0.61438695]
[1643789778241,0.92530378,2762.0,2761.1,0.61438695]
[1643789779790,1.09866631,2761.9,2761.1,0.61438695]
[1643789779991,0.523,2761.8,2761.1,0.61438695]
[1643789780689,0.523,2761.8,2761.1,0.1809]
[1643789780891,0.523,2761.8,2760.7,0.1809]
[1643789780892,0.823,2761.8,2760.7,0.1809]
[1643789781090,0.823,2761.8,2760.8,0.41329229]
[1643789781298,0.823,2761.8,2760.9,0.1809]
[1643789781798,1.10265412,2761.7,2761.0,1.6741305]
[1643789781995,1.10265412,2761.7,2761.1,0.1809]
[1643789782695,0.38367307,2761.5,2761.1,0.1809]
[1643789782939,1.10265412,2761.4,2761.2,0.41490351]
[1643789784539,1.10265412,2761.3,2761.2,0.41490351]
[1643789784939,1.10265412,2761.7,2761.2,0.41490351]
[1643789785140,1.10265412,2761.6,2761.2,0.41490351]
[1643789785341,1.10265412,2761.7,2761.2,0.41490351]
[1643789785542,1.10265412,2761.6,2761.2,0.41490351]
[1643789785946,1.10265412,2761.5,2761.2,0.41490351]
[1643789786245,1.10265412,2761.4,2761.2,0.41490351]
[1643789786451,1.10265412,2761.3,2761.2,0.41490351]
[1643789786895,1.10265412,2761.9,2761.2,0.41490351]
[1643789787098,1.10265412,2761.8,2761.2,0.41490351]
[1643789787295,1.10265412,2761.9,2761.2,0.41490351]
[1643789787495,1.10265412,2761.8,2761.2,0.41490351]
[1643789787698,1.10265412,2761.7,2761.2,0.41490351]
[1643789787897,1.10265412,2761.6,2761.2,0.41490351]
[1643789788097,1.10265412,2761.5,2761.2,0.41490351]
[1643789788298,1.10265412,2761.4,2761.2,0.41490351]
[1643789788497,1.10265412,2761.3,2761.2,0.41490351]
[1643789789299,2.10265412,2761.9,2761.2,0.41490351]
[1643789789500,1.10265412,2761.8,2761.2,0.41490351]
[1643789789903,1.10265412,2761.7,2761.2,0.41490351]
[1643789790108,1.10265412,2761.6,2761.2,1.97923076]
[1643789790306,1.56535429,2762.4,2761.2,1.97923076]
[1643789790307,0.1809,2762.3,2761.8,0.3855079]
[1643789790557,0.41535429,2762.4,2761.9,2.35763986]
[1643789790558,1.13508105,2762.2,2761.9,2.35763986]
[1643789790755,1.13508105,2762.3,2762.0,2.42112434]
[1643789790953,1.13508105,2762.2,2762.1,2.89181509]
[1643789791154,0.67501907,2762.5,2762.1,1.32879757]
[1643789791354,0.67501907,2762.6,2762.2,0.3918027]
[1643789791555,1.81010012,2762.6,2762.0,0.3918027]
[1643789791767,1.13508105,2762.5,2762.0,0.3918027]
[1643789791960,0.67501907,2762.6,2762.0,0.3918027]
[1643789791961,1.13508105,2762.4,2762.0,0.3918027]
[1643789792162,1.13508105,2762.3,2762.0,0.3918027]
[1643789792362,1.13508105,2762.2,2762.0,0.3918027]
[1643789792561,1.13508105,2762.1,2761.8,0.3855079]
[1643789792762,0.44664987,2762.3,2761.9,0.39178173]
[1643789792958,1.13508105,2762.2,2762.0,0.39178173]
[1643789793161,1.13508105,2762.2,2761.6,0.1809]
[1643789793365,1.13508105,2762.1,2761.7,0.39186736]
[1643789793562,1.13508105,2762.0,2761.8,2.54914377]
[1643789793860,0.85591907,2762.6,2761.9,0.39186736]
[1643789794063,1.13486158,2762.5,2761.9,0.39186736]
[1643789794302,1.13486158,2762.5,2762.0,0.39779597]
[1643789794500,0.59308079,2762.6,2762.1,0.39186736]
[1643789794501,1.72794237,2762.6,2762.1,0.39186736]
[1643789794795,1.13486158,2762.5,2762.2,0.39186736]
[1643789794994,1.13486158,2762.5,2762.3,0.39186736]
[1643789795195,1.12789128,2762.5,2761.7,0.1809]
[1643789795900,1.12789128,2762.5,2761.9,0.4036998]
[1643789796098,1.12789128,2762.5,2761.9,2.33330682]
[1643789796298,1.12789128,2762.5,2761.9,2.33594548]
[1643789796700,1.12789128,2762.5,2761.9,0.4036998]
[1643789797103,1.12789128,2762.5,2761.7,2.06705051]
[1643789797502,1.12789128,2762.5,2761.8,0.35566418]
[1643789797503,0.37299528,2762.3,2761.8,0.35566418]
[1643789798344,0.37299528,2762.3,2761.7,2.95967626]
[1643789798546,0.37299528,2762.3,2761.7,0.181]
[1643789798950,0.37299528,2762.3,2761.5,0.4809]
[1643789799146,0.37299528,2762.3,2761.6,1.964756]
[1643789799553,0.85591907,2762.7,2761.9,0.32320896]
[1643789799748,0.1809,2762.7,2761.9,0.32320896]
[1643789800247,0.85591907,2762.7,2761.9,0.32320896]
[1643789800447,0.35481815,2762.4,2761.7,1.03908866]
[1643789800847,0.85591907,2762.7,2761.7,3.00733953]
[1643789801245,1.67891907,2762.7,2761.7,3.00733953]
[1643789801904,1.0039,2762.7,2761.7,3.00733953]
[1643789802111,1.67891907,2762.7,2761.7,3.00733953]
[1643789802304,0.37160587,2762.5,2761.7,1.03908866]
[1643789802502,0.37160587,2762.5,2761.7,0.1809]
[1643789802706,0.37160587,2762.5,2761.7,2.12834976]
[1643789802902,0.37160587,2762.5,2761.7,0.1809]
[1643789803304,0.55250587,2762.5,2762.0,0.37121676]
[1643789803504,0.37160587,2762.5,2762.0,0.37121676]
[1643789804715,0.37160587,2762.5,2761.6,0.1809]
[1643789805546,0.1809,2762.6,2761.6,2.1809]
[1643789805757,1.8102739,2763.1,2761.8,0.02157805]
[1643789805758,0.1809,2763.0,2761.8,0.02157805]
[1643789805948,0.85591907,2763.0,2761.8,2.02157805]
[1643789806146,0.67501907,2763.0,2761.9,0.1809]
[1643789806352,0.67501907,2763.0,2761.4,6.7733198]
[1643789806353,6.54886645,2762.6,2761.5,0.1809]
[1643789806552,0.32695465,2762.0,2761.7,0.01250658]
[1643789806752,1.37891907,2762.5,2761.5,0.54148576]
[1643789806753,0.523,2761.9,2761.5,0.54148576]
[1643789807552,0.523,2761.9,2761.5,0.1809]
[1643789807952,0.523,2761.9,2761.4,0.1809]
[1643789808554,0.96399002,2761.9,2761.4,0.55210876]
[1643789808757,0.523,2761.9,2761.4,0.55210876]
[1643789808954,0.423,2761.9,2761.4,0.55210876]
[1643789809595,0.423,2761.9,2761.4,0.1809]
[1643789809792,0.1809,2762.4,2761.3,0.6754718]
[1643789809998,2.0,2762.5,2761.4,0.8563718]
[1643789809999,0.7039,2762.5,2761.4,0.8563718]
[1643789810191,1.7039,2762.5,2761.4,0.8563718]
[1643789810391,1.7039,2762.5,2761.5,0.3]
[1643789810592,0.37015077,2762.4,2761.5,0.3]
[1643789810792,0.1809,2762.3,2761.8,0.83764843]
[1643789810994,1.523,2762.5,2761.8,0.83764843]
[1643789810995,0.1809,2762.4,2761.8,0.83764843]
[1643789811192,0.523,2762.3,2761.8,0.83764843]
[1643789811391,0.523,2762.3,2761.5,0.6754718]
[1643789811592,0.523,2762.3,2761.4,1.3392]
[1643789811794,0.523,2762.3,2761.7,0.43138554]
[1643789811795,0.3425514,2762.2,2761.7,0.43138554]
[1643789812394,0.523,2762.1,2761.7,1.21270895]
[1643789812799,0.523,2762.1,2761.7,1.51270895]
[1643789814247,0.523,2762.1,2761.7,0.73138554]
[1643789814449,0.523,2762.1,2761.7,0.43138554]
[1643789814647,0.523,2762.1,2761.5,0.4809]
[1643789814849,0.523,2762.1,2761.5,0.1809]
[1643789815049,0.523,2762.1,2761.3,0.1809]
[1643789815256,0.523,2762.1,2761.4,0.36196691]
[1643789815257,1.16244806,2762.0,2761.4,0.36196691]
[1643789815449,1.16244806,2762.0,2761.5,0.1809]
[1643789815650,1.16244806,2762.0,2761.6,0.36196691]
[1643789816053,1.16244806,2762.0,2761.4,0.36196691]
[1643789816253,1.16244806,2762.0,2761.5,0.54286691]
[1643789816453,1.5499876,2762.0,2761.6,0.36196691]
[1643789816696,1.16244806,2761.9,2761.6,0.36196691]
[1643789817499,1.16244806,2761.9,2761.7,0.36196691]
[1643789817701,1.16244806,2761.8,2761.3,0.1809]
[1643789817903,0.523,2762.1,2761.4,0.36205666]
[1643789818102,0.523,2761.8,2761.5,0.1809]
[1643789818301,0.523,2761.8,2761.6,0.36205666]
[1643789818501,1.16275027,2761.7,2761.6,0.36205666]
[1643789819101,0.523,2761.8,2761.6,0.36205666]
[1643789819302,1.16302984,2761.7,2761.6,0.36205666]
[1643789822146,3.18913425,2761.7,2761.4,0.36205666]
[1643789822348,3.18913425,2761.7,2761.5,0.36205666]
[1643789822349,5.61302984,2761.6,2761.5,0.36205666]
[1643789822547,9.42337606,2761.6,2761.5,0.36205666]
[1643789822948,4.97337606,2761.6,2761.2,0.40069231]
[1643789823152,1.16302984,2761.5,2761.3,0.36205666]
[1643789823348,0.523,2761.4,2761.3,0.36205666]
[1643789823548,1.68602984,2761.4,2761.3,0.36205666]
[1643789823746,1.86702984,2761.4,2761.3,0.36205666]
[1643789824796,1.86702984,2761.4,2760.9,0.36205666]
[1643789824996,1.17751994,2761.3,2761.0,0.36205666]
[1643789825196,0.523,2761.2,2761.1,0.36205666]
[1643789825397,1.70051994,2761.2,2761.1,0.36205666]
[1643789826801,0.523,2761.2,2761.1,0.36205666]
[1643789827402,1.68615894,2761.2,2761.1,0.36205666]
[1643789829152,2.68615894,2761.2,2761.1,0.36205666]
[1643789829351,2.68615894,2761.2,2761.1,9.36205666]
[1643789829754,1.68615894,2761.2,2761.1,9.36205666]
[1643789829952,2.68615894,2761.2,2761.1,9.36205666]
[1643789830352,1.68615894,2761.2,2761.1,9.36205666]
[1643789830554,2.68615894,2761.2,2761.1,9.36205666]
[1643789830960,1.68615894,2761.2,2761.1,9.36205666]
[1643789831155,2.68615894,2761.2,2761.1,9.36205666]
[1643789831359,4.58791847,2761.2,2761.1,9.0]
[1643789831557,4.58791847,2761.2,2761.1,7.36500625]
[1643789831804,4.76881847,2761.2,2761.1,7.36500625]
[1643789832404,4.76881847,2761.2,2761.1,7.22500625]
[1643789832606,4.58791847,2761.2,2761.1,7.22500625]
[1643789832806,2.68615894,2761.2,2761.1,7.22500625]
[1643789834307,1.68615894,2761.2,2761.1,7.22500625]
[1643789834509,2.68615894,2761.2,2761.1,7.22500625]
[1643789836351,1.68615894,2761.2,2761.1,7.22500625]
[1643789836552,2.68615894,2761.2,2761.1,7.59138006]
[1643789836755,2.68615894,2761.2,2761.1,7.22500625]
[1643789836756,1.523,2761.2,2761.1,7.22500625]
[1643789836957,2.67916304,2761.2,2761.1,7.22500625]
[1643789837659,1.67916304,2761.2,2761.1,7.22500625]
[1643789837863,2.67916304,2761.2,2761.1,7.22500625]
[1643789838057,1.67916304,2761.2,2761.1,7.22500625]
[1643789838259,2.67916304,2761.2,2761.1,7.22500625]
[1643789838458,1.67916304,2761.2,2761.1,7.22500625]
[1643789838663,2.67916304,2761.2,2761.1,7.22500625]
[1643789839058,1.67916304,2761.2,2761.1,7.22500625]
[1643789839294,2.67916304,2761.2,2761.1,7.22500625]
[1643789839494,1.67916304,2761.2,2761.1,7.22500625]
[1643789839698,2.67916304,2761.2,2761.1,7.22500625]
[1643789840707,1.67916304,2761.2,2761.1,7.22500625]
[1643789840901,2.67916304,2761.2,2761.1,7.22500625]
[1643789841099,1.67916304,2761.2,2761.1,7.22500625]
[1643789841406,2.67916304,2761.2,2761.1,7.22500625]
[1643789841600,1.67916304,2761.2,2761.1,7.22500625]
[1643789841802,2.67916304,2761.2,2761.1,7.22500625]
[1643789842003,1.67916304,2761.2,2761.1,7.22500625]
[1643789842201,2.67916304,2761.2,2761.1,7.22500625]
[1643789842706,6.8,2761.1,2760.7,0.1809]
[1643789842953,6.8,2760.7,2760.4,0.144908]
[1643789843150,1.67916304,2760.6,2760.4,0.144908]
[1643789843351,1.15616304,2760.5,2760.4,0.144908]
[1643789843651,1.67916304,2760.5,2760.4,0.144908]
[1643789844854,3.82064078,2760.5,2760.4,0.144908]
[1643789845355,0.90593,2760.4,2759.7,0.1811]
[1643789845556,2.48382234,2760.3,2759.8,0.35421597]
[1643789845756,2.48382234,2760.3,2759.9,0.1811]
[1643789845957,2.45124074,2760.3,2760.0,0.35421597]
[1643789846361,2.45124074,2760.3,2760.1,0.35421597]
[1643789846565,1.97619047,2760.2,2759.7,0.1811]
[1643789846807,0.523,2760.1,2759.8,0.3540595]
[1643789847009,2.01261513,2760.0,2759.6,0.3540595]
[1643789847206,2.01261513,2760.0,2759.7,0.3540595]
[1643789847405,2.01261513,2760.0,2759.8,0.3540595]
[1643789847406,0.523,2759.9,2759.8,0.3540595]
[1643789847607,0.94743051,2759.9,2759.8,0.3540595]
[1643789847808,1.94743051,2759.9,2759.8,0.3540595]
[1643789848008,0.94743051,2759.9,2759.8,0.3540595]
[1643789850109,0.523,2759.9,2759.8,0.3540595]
[1643789850548,0.90589,2760.4,2759.8,0.3540595]
[1643789850549,0.1811,2760.4,2759.8,0.3540595]
[1643789850758,1.1918,2760.6,2759.9,0.3540595]
[1643789850952,0.523,2760.7,2760.0,0.3540595]
[1643789851151,1.41986277,2760.6,2760.1,0.3540595]
[1643789851351,0.60858937,2760.6,2760.1,0.44779962]
[1643789851760,0.60858937,2760.6,2759.6,0.01204514]
[1643789851960,2.67231583,2760.5,2759.7,0.75541858]
[1643789852156,2.67231583,2760.5,2759.8,0.27431858]
[1643789852157,1.0,2760.4,2759.8,0.27431858]
[1643789852355,0.523,2760.3,2759.8,0.27431858]
[1643789852558,0.523,2760.3,2759.6,0.1811]
[1643789852756,0.523,2760.3,2759.7,0.27431238]
[1643789853056,0.523,2760.3,2760.0,0.39901804]
[1643789853057,0.90592,2760.2,2760.0,0.39901804]
[1643789853259,0.1961226,2760.1,2760.0,0.39901804]
[1643789853460,0.1961226,2760.1,2760.0,0.67298939]
[1643789858749,2.08692,2760.5,2760.0,0.67298939]
[1643789858750,0.90582,2760.5,2760.0,0.67298939]
[1643789858953,0.1811,2760.7,2760.4,0.01204915]
[1643789859151,0.1811,2761.0,2760.5,0.27397135]
[1643789859355,0.523,2761.5,2760.6,0.27397135]
[1643789859356,0.1811,2761.3,2760.6,0.27397135]
[1643789859654,0.523,2761.5,2760.7,0.27397135]
[1643789859655,1.23199932,2761.2,2760.7,0.27397135]
[1643789859852,1.23199932,2761.2,2760.9,0.39275462]
[1643789860049,0.1809,2761.4,2761.0,0.27397135]
[1643789860654,1.26325807,2761.3,2761.0,0.27397135]
[1643789860852,0.1809,2761.2,2761.0,0.27397135]
[1643789861052,0.1809,2761.4,2761.0,0.27397135]
[1643789861254,1.26324354,2761.3,2761.0,0.27397135]
[1643789861452,1.26324354,2761.4,2761.0,0.27397135]
[1643789864701,1.26324354,2761.4,2761.2,0.8215912]
[1643789865547,1.26324354,2761.4,2760.9,0.39275462]
[1643789865752,1.26324354,2761.4,2761.0,0.25786761]
[1643789865948,1.26324354,2761.3,2761.0,0.25786761]
[1643789866151,1.26324354,2761.2,2761.0,0.25786761]
[1643789866353,1.26324354,2761.5,2761.0,0.25786761]
[1643789866552,1.26324354,2761.5,2761.0,1.00380868]
[1643789866953,1.26324354,2761.5,2761.1,0.25786761]
[1643789867957,1.1809,2761.7,2761.1,0.25786761]
[1643789867958,1.26324354,2761.4,2761.1,0.25786761]
[1643789868155,1.26324354,2761.3,2761.1,0.25786761]
[1643789868355,1.26324354,2761.6,2761.1,0.25786761]
[1643789869696,1.26324354,2761.6,2761.1,1.20688427]
[1643789869898,1.26324354,2761.6,2761.2,0.25786761]
[1643789870102,1.26324354,2761.6,2761.0,0.1809]
[1643789870296,1.26324354,2761.6,2761.1,0.25663838]
[1643789871405,1.26324354,2761.6,2761.2,1.94638783]
[1643789871603,0.40549013,2761.8,2761.4,0.33432738]
[1643789871804,0.40549013,2761.8,2761.5,0.25663838]
[1643789871805,1.26462137,2761.7,2761.5,0.25663838]
[1643789872003,1.26462137,2761.7,2761.6,0.25663838]
[1643789872204,1.26462137,2761.7,2761.0,1.32784682]
[1643789872404,1.26462137,2761.7,2761.1,0.25764384]
[1643789872805,1.26462137,2761.7,2761.1,0.61602651]
[1643789873078,1.26462137,2761.7,2761.0,0.1809]
[1643789873273,1.26462137,2761.7,2761.1,0.25768335]
[1643789873472,0.523,2761.6,2761.0,0.1809]
[1643789873772,1.26462137,2761.5,2761.0,0.1809]
[1643789873973,0.7039,2761.4,2760.9,0.90337089]
[1643789874175,0.1809,2761.5,2761.0,0.25769188]
[1643789874375,1.26427793,2761.4,2761.0,0.25769188]
[1643789874776,0.1809,2761.7,2761.0,0.25769188]
[1643789874976,1.26417177,2761.6,2761.0,0.25769188]
[1643789875183,0.44791813,2761.4,2761.0,0.25769188]
[1643789875379,1.26417177,2761.3,2761.0,0.25769188]
[1643789878202,1.26417177,2761.3,2761.0,1.16313188]
[1643789878401,1.26417177,2761.3,2761.1,1.16311148]
[1643789878601,1.26417177,2761.3,2761.2,0.25769188]
[1643789878803,1.26417177,2761.3,2761.1,1.2054196]
[1643789879001,1.26417177,2761.2,2761.1,1.2054196]
[1643789879201,0.523,2761.5,2761.2,0.42573219]
[1643789879403,1.2654388,2761.4,2761.1,2.13516851]
[1643789879601,1.7884388,2761.4,2761.1,2.13516851]
[1643789879802,1.2654388,2761.3,2761.1,2.13516851]
[1643789880201,1.2654388,2761.3,2761.1,1.2054196]
[1643789881263,1.2654388,2761.3,2761.2,0.25602978]
[1643789881462,1.26567236,2761.3,2761.2,0.25602978]
[1643789881664,0.523,2761.4,2761.2,0.25602978]
[1643789881867,1.2656462,2761.3,2761.2,0.25602978]
[1643789882168,1.2656462,2761.3,2761.1,1.2054196]
[1643789882667,1.26449068,2761.3,2761.1,1.2054196]
[1643789883075,1.26449068,2761.3,2761.0,0.90544]
[1643789883267,1.26449068,2761.3,2761.0,0.3]
[1643789883467,0.7039,2761.5,2761.0,0.3]
[1643789883668,0.7039,2761.5,2760.9,0.3]
[1643789884067,0.7039,2761.5,2760.9,1.05239932]
[1643789884704,0.7039,2761.5,2761.0,0.90545]
[1643789884903,0.7039,2761.5,2761.0,1.8108854]
[1643789885907,0.7039,2761.5,2760.9,4.67399252]
[1643789886106,0.7039,2761.5,2760.9,3.9215932]
[1643789887110,0.7039,2761.5,2760.9,4.82341386]
[1643789887952,0.7039,2761.5,2761.0,1.8107814]
[1643789888151,0.523,2761.5,2761.1,1.94057532]
[1643789888356,0.523,2761.5,2761.1,2.24057532]
[1643789888548,0.523,2761.5,2761.1,0.3]
[1643789888748,0.1809,2761.7,2761.0,2.4107814]
[1643789888950,0.1809,2761.8,2761.5,0.35809563]
[1643789889152,1.28305477,2762.0,2761.6,1.58531201]
[1643789889153,0.929279,2762.0,2761.6,1.58531201]
[1643789889352,4.429279,2762.0,2761.6,2.36621201]
[1643789890255,1.34241554,2762.0,2761.6,2.36621201]
[1643789890652,1.34241554,2762.0,2761.6,1.68614]
[1643789890860,1.34241554,2762.0,2761.6,0.1809]
[1643789891053,0.523,2761.9,2761.6,0.1809]
[1643789892313,0.523,2761.9,2761.4,0.1809]
[1643789893518,0.523,2761.9,2761.3,3.6209754]
[1643789894615,0.43874692,2761.7,2761.3,3.6209754]
[1643789896860,0.43874692,2761.7,2761.5,0.3]
[1643789897662,0.523,2761.9,2761.5,0.3]
[1643789897865,0.929279,2762.0,2761.5,0.3]
[1643789897866,0.929279,2762.0,2761.6,2.86867139]
[1643789898061,0.929279,2762.0,2761.6,1.20522]
[1643789898665,1.34224318,2762.0,2761.6,2.14863252]
[1643789898861,1.34224318,2762.0,2761.6,1.20522]
[1643789901314,1.34224318,2762.0,2761.6,0.90522]
[1643789901510,1.34224318,2762.0,2761.6,0.3]
[1643789901711,0.929279,2762.0,2761.6,0.9052891]
[1643789902714,1.24928429,2761.9,2761.7,1.01923255]
[1643789902975,1.24928429,2761.9,2761.8,0.27651334]
[1643789903163,1.24928429,2761.9,2761.8,0.57651334]
[1643789906811,1.24928429,2761.9,2761.8,0.87651334]
[1643789907409,1.24928429,2761.9,2761.8,1.71463519]
[1643789907612,1.24928429,2761.9,2761.8,1.89553519]